[Event "Cairns Cup 2024"]
[Site "Saint Louis"]
[Date "2024.06.19"]
[Round "6.1"]
[White "Kosteniuk, Alexandra"]
[Black "Muzychuk, Mariya"]
[Result "1-0"]
[ECO "B11"]
[WhiteElo "2501"]
[BlackElo "2510"]
[Annotator "TA"]
[PlyCount "136"]
[EventDate "2024.06.13"]
[EventType "tourn"]
[EventCountry "USA"]
[SourceTitle "playchess.com"]
[Source "ChessBase"]
[SourceQuality "1"]
[TimeControl "40/5400+30:1800+30"]

{[%evp 10,136,24,21,33,31,31,24,25,11,28,20,19,19,25,19,25,0,0,0,0,-27,-19,-26,-19,-20,0,-46,-34,-55,-25,-20,-26,-25,-41,-33,-28,-22,-22,-31,-31,-42,-28,-21,-44,-62,-49,-61,-50,-47,-40,-57,-33,-86,-76,-87,-81,-98,-99,-92,-100,-92,-89,-108,-45,-34,-25,-148,-136,-133,-143,-124,0,0,0,0,0,0,8,8,8,3,3,0,0,0,8,0,35,0,8,8,30,30,29,30,29,29,27,27,31,30,60,60,380,217,214,217,217,217,217,217,216,211,226,206,206,194,29977,29978,29978,29979,29979,29980,29980,29981,29981,29982,29977]} 1. e4 {[%emt 0:00:00]} c6 {[%emt 0:00:00]} 2. Nc3 {[%emt 0:00:00]} d5 {[%emt 0:00:00]} 3. Nf3 {[%emt 0:00:00]} dxe4 {[%emt 0:00:00]} 4. Nxe4 {[%emt 0:00:00]} Nf6 {[%emt 0:00:00]} 5. Qe2 {[%emt 0:00:00]} Nxe4 {[%emt 0:00:00]} 6. Qxe4 {[%emt 0:00:00]} Nd7 {[%emt 0:00:00]} 7. d4 {[%emt 0:00:00]} Nf6 {[%emt 0:00:00]} 8. Qd3 {[%emt 0:00:00]} g6 {[%emt 0:00:00] White has an edge.} 9. Be2 {[%emt 0:00:00]} Bg7 {[%emt 0:00:00]} 10. O-O {[%emt 0:00:00]} O-O {[%emt 0:00:00]} 11. Re1 {[%emt 0:00:00]} a5 {[%emt 0:00:00]} 12. Bf1 {[%emt 0:00:00]} Bf5 {[%emt 0:00:00]} 13. Qb3 {[%emt 0:00:00]} Nd5 {[%emt 0:00:00]} 14. c3 {[%emt 0:00:00]} (14. Qxb7 Nb4 15. c3 Rb8 $19 (15... Nc2 16. Bf4 $17)) 14... a4 {[%emt 0:00:00]} 15. Qa3 {[%emt 0:00:00]} (15. Qxb7 $2 Qd6 16. Bg5 f6 $19) 15... b5 {[%emt 0:00:00]} 16. Ne5 {[%emt 0:00:00][%cal Bf3e5,Be5d3,Bd3c5][%mdl 32]} Qb6 {[%emt 0:00:00]} 17. Bd2 {[%emt 0:02:42]} Rfd8 {[%emt 0:10:46]} 18. Rad1 {[%emt 0:03:30]} (18. h3 $11) 18... f6 $15 {[%emt 0:36:06]} 19. Nd3 {[%emt 0:07:48]} e6 {[%emt 0:00:21]} 20. Nc5 {[%emt 0:35:25]} e5 {[%emt 0:00:35]} 21. b4 {[%emt 0:05:58]} axb3 $1 {[%emt 0:05:23]} 22. Qxb3 {[%emt 0:00:39]} Bf8 {[%emt 0:00:38]} 23. c4 {[%emt 0:06:43]} bxc4 {[%emt 0:00:16]} 24. Bxc4 {[%emt 0:09:47]} Qxb3 {[%emt 0:00:57]} (24... Bxc5 {simplifies} 25. dxc5 Qxb3 26. axb3 Be6) 25. Bxb3 {[%emt 0:01:57]} Kg7 {[%emt 0:05:17]} (25... exd4 $6 26. Ne6 $14) 26. Nb7 {[%emt 0:08:10]} Rd7 {[%emt 0:02:14]} 27. Nc5 {[%emt 0:00:02]} Bxc5 {[%emt 0:03:59]} 28. dxc5 {[%emt 0:00:05]} Rb7 {[%emt 0:01:10]} 29. g3 {[%emt 0:03:40]} g5 {[%emt 0:02:39]} 30. f3 {[%emt 0:02:36]} Be6 {[%emt 0:05:23]} 31. Be3 {[%emt 0:04:18]} (31. Re4 $15) 31... Kf7 {[%emt 0:05:09]} 32. Bf2 {[%emt 0:01:02]} Ke7 {[%emt 0:01:19]} 33. Rd2 {[%emt 0:00:22]} h5 {[%emt 0:04:50]} 34. Rc1 {[%emt 0:03:56]} Rb4 {[%emt 0:01:09]} 35. Be1 {[%emt 0:01:36]} Rb5 {[%emt 0:01:07]} 36. Re2 {[%emt 0:00:47]} Ra3 {[%emt 0:02:42]} (36... Nb4 $17 37. Bxe6 Kxe6) 37. Re4 {[%emt 0:01:08]} Kd7 {[%emt 0:03:19]} 38. Ra4 {[%emt 0:01:59]} (38. Rd1 $11) 38... Rxa4 $17 {[%emt 0:01:00]} 39. Bxa4 {[%emt 0:00:02]} Rb2 {[%emt 0:00:53]} 40. Rc2 {[%emt 0:00:05]} Rxc2 {[%emt 0:07:13]} (40... Rb1 $17 41. Kf2 g4 42. fxg4 Bxg4 (42... hxg4 43. Bb3 $17)) 41. Bxc2 {[%emt 0:30:02][%mdl 4096] Endgame. KBB-KBN} Ne3 {[%emt 0:30:30][%csl LRa2,LRc2]} 42. Bg6 {[%emt 0:01:45]} Bxa2 {[%emt 0:01:08]} 43. Bxh5 {[%emt 0:00:02]} Ke6 {[%emt 0:01:22]} 44. Kf2 {[%emt 0:00:44]} Nc2 {[%emt 0:00:50]} 45. Ba5 {[%emt 0:00:37]} Nd4 {[%emt 0:00:26]} 46. h4 {[%emt 0:00:33]} gxh4 {[%emt 0:00:12]} 47. gxh4 {[%emt 0:00:01]} Bd5 {[%emt 0:00:33]} 48. Bd8 {[%emt 0:01:37]} f5 {[%emt 0:01:38]} 49. Ke3 {[%emt 0:00:31]} f4+ {[%emt 0:00:33]} 50. Kf2 {[%emt 0:00:07]} e4 {[%emt 0:00:35]} 51. Bg4+ {[%emt 0:00:17]} Kf7 {[%emt 0:00:11]} 52. fxe4 {[%emt 0:00:18]} Bxe4 {[%emt 0:00:02]} 53. Bc7 {[%emt 0:00:20]} Nb3 {[%emt 0:00:43]} 54. Bd6 {[%emt 0:00:29][%cal Og4d1]} (54. Bxf4 Nxc5 55. Bb8 Kf6 $14) 54... Kg6 {[%emt 0:00:52]} 55. Bd1 {[%emt 0:01:39]} (55. Bxf4 Nxc5 56. Bd6 Nb7 $11) 55... Bd5 {[%emt 0:00:28]} 56. h5+ {[%emt 0:01:45]} (56. Bxf4 Nxc5 57. Ke3 Kf6) 56... Kg5 $2 {[%emt 0:00:21][%mdl 8192] Black cannot hold the game after this.} (56... Kf6 $14) 57. Be7+ {[%emt 0:00:02]} (57. Bxf4+ $142 Kxf4 58. h6 Nxc5 59. h7) 57... Kh6 $18 {[%emt 0:00:08][%cal Of4f3]} 58. Bf8+ {[%emt 0:00:04]} Kh7 {[%emt 0:00:07] [#]} 59. Bc2+ $1 {[%emt 0:00:14]} Kg8 {[%emt 0:00:08]} 60. Bd6 {[%emt 0:00:11][%cal Oh5h6] h6! would kill now.} Nd4 {[%emt 0:01:32] [#]} 61. Bd3 $1 {[%emt 0:00:05][%cal Oh5h6] Intending h6! and mate.} Ne6 {[%emt 0:03:30]} 62. h6 {[%emt 0:00:12] White threatens h7+ and mate.} Ng5 {[%emt 0:00:17]} 63. Bxf4 {[%emt 0:00:18]} Nh3+ $2 {[%emt 0:00:34]} (63... Be4 $18 64. Bc4+ Nf7) 64. Kg3 {[%emt 0:00:05] White mates.} Nxf4 {[%emt 0:00:03]} 65. Kxf4 {[%emt 0:00:06]} Bb3 {[%emt 0:00:51]} 66. Ke5 {[%emt 0:00:10]} Kf7 {[%emt 0:00:05]} 67. Be4 {[%emt 0:00:34]} Ba4 {[%emt 0:01:13]} 68. Kd6 {[%emt 0:00:17]} Bb5 {[%emt 0:00:44] Weighted Error Value: White=0.15 (very precise) /Black=0.19 (very precise) .  Loses game:     	---       	Black=1      Mistake:       	White=4     	Black=3      Inaccurate:     	White=2     	Black=3      OK:         	White=22    	Black=22     Best:        	White=3     	Black=6      Strong:       	White=2     	Black=1} 1-0

[Event "Cairns Cup 2024"]
[Site "Saint Louis"]
[Date "2024.06.19"]
[Round "6.2"]
[White "Dronavalli, Harika"]
[Black "Zatonskih, Anna"]
[Result "1/2-1/2"]
[ECO "C13"]
[WhiteElo "2489"]
[BlackElo "2327"]
[Annotator "TA"]
[PlyCount "112"]
[EventDate "2024.06.13"]
[EventType "tourn"]
[EventCountry "USA"]
[SourceTitle "playchess.com"]
[Source "ChessBase"]
[SourceQuality "1"]
[TimeControl "40/5400+30:1800+30"]

{[%evp 15,112,14,4,17,14,18,46,50,52,29,27,29,28,16,36,16,25,14,18,15,13,12,0,8,0,8,0,4,2,10,4,6,12,0,7,0,22,24,23,20,73,0,17,0,0,0,0,0,12,0,0,0,8,9,66,52,44,54,58,0,0,0,0,0,3,0,0,0,0,0,0,0,0,0,0,0,0,0,0,0,0,0,0,0,0,0,0,0,0,0,0,0,0,0,0,0,0,0,0]} 1. e4 {[%emt 0:00:00]} e6 {[%emt 0:00:00]} 2. d4 {[%emt 0:00:00]} d5 {[%emt 0:00:00]} 3. Nc3 {[%emt 0:00:00]} Nf6 {[%emt 0:00:00]} 4. Bg5 {[%emt 0:00:00]} dxe4 {[%emt 0:00:00]} 5. Nxe4 {[%emt 0:00:00]} Be7 {[%emt 0:00:00]} 6. Nxf6+ {[%emt 0:00:00]} Bxf6 {[%emt 0:00:00]} 7. Bxf6 {[%emt 0:00:00]} Qxf6 {[%emt 0:00:00]} 8. Nf3 {[%emt 0:00:00][%cal Bg1f3,Bf3d4,Bd4b5,Bb5d6,Bd6c4,Bc4e5][%mdl 32]} O-O {[%emt 0:00:00]} 9. Qd3 {[%emt 0:00:00]} c5 {[%emt 0:07:28]} 10. O-O-O {[%emt 0:00:00]} cxd4 {[%emt 0:03:30]} (10... Rd8 {is more complex.} 11. Qe4 Nc6 12. Bd3 Qh6+) 11. Qxd4 {[%emt 0:05:40] White is slightly better.} Qxd4 {[%emt 0:01:33]} 12. Nxd4 {[%emt 0:00:06]} b6 {[%emt 0:13:10]} 13. Nb5 {[%emt 0:03:48] [#] Strongly threatening Nc7.} a6 {[%emt 0:00:49]} 14. Nd6 {[%emt 0:00:48]} Bd7 {[%emt 0:04:52]} 15. Bd3 {[%emt 0:02:46]} Bc6 {[%emt 0:05:27]} 16. Be4 {[%emt 0:03:59]} Ra7 {[%emt 0:02:22]} 17. Rhe1 {[%emt 0:06:24]} Rc7 {[%emt 0:03:59]} 18. Nc4 {[%emt 0:06:31]} b5 {[%emt 0:05:53]} 19. Ne5 {[%emt 0:06:51]} Bxe4 {[%emt 0:05:43]} 20. Rxe4 {[%emt 0:00:17]} Rfc8 {[%emt 0:00:35]} 21. c3 {[%emt 0:09:26]} f6 {[%emt 0:04:17]} 22. Nd3 {[%emt 0:00:13]} e5 {[%emt 0:05:39]} 23. f4 {[%emt 0:05:52]} exf4 {[%emt 0:05:10]} 24. Nxf4 {[%emt 0:00:32]} Kf7 {[%emt 0:02:05]} 25. Rd6 {[%emt 0:08:33]} a5 {[%emt 0:16:51]} 26. a3 {[%emt 0:06:42]} Rb7 {[%emt 0:02:08] Repels Rb6} 27. Nd3 {[%emt 0:10:10]} Nd7 {[%emt 0:01:46] [#]} (27... Nc6 $11) 28. Red4 {[%emt 0:01:54] White has more active pieces.} (28. Rd5 $1 $16) 28... Nc5 {[%emt 0:01:30]} 29. Nxc5 {[%emt 0:08:06]} Rxc5 {[%emt 0:00:01]} 30. R4d5 {[%emt 0:01:12]} Rxd5 {[%emt 0:01:55]} 31. Rxd5 $11 {[%emt 0:00:04][%cal Oc3c4][%mdl 4096] Endgame. KR-KR} a4 {[%emt 0:02:14]} 32. Kc2 {[%emt 0:06:58]} Ke6 {[%emt 0:00:10]} 33. Rd4 {[%emt 0:00:02]} f5 {[%emt 0:01:31]} 34. Rb4 {[%emt 0:00:58]} Kd6 {[%emt 0:01:00]} ({Black should play} 34... g6 $11) 35. c4 $1 $14 {[%emt 0:01:48]} Rc7 {[%emt 0:01:00]} 36. Kc3 {[%emt 0:01:49]} ({Much weaker is} 36. Rxb5 Rxc4+ 37. Kd3 Rg4 $11) 36... bxc4 {[%emt 0:03:25]} ({Don't do} 36... Rxc4+ 37. Rxc4 bxc4 38. Kxc4 $11) 37. Rxc4 {[%emt 0:00:21]} ({Better is} 37. Rxa4 $14 Kd5 38. Ra5+ Ke4 39. Rb5) 37... Ra7 $1 $11 {[%emt 0:00:04] The position is equal.} 38. Rb4 {[%emt 0:00:18]} Kc5 {[%emt 0:00:45]} 39. Kd3 {[%emt 0:01:02]} Rd7+ {[%emt 0:01:41]} 40. Kc3 {[%emt 0:01:03]} Ra7 {[%emt 0:00:11]} 41. h4 {[%emt 0:30:30]} g6 {[%emt 0:30:45]} 42. g3 {[%emt 0:00:43]} Kd5 {[%emt 0:00:57]} 43. Kd3 {[%emt 0:00:48]} Ra6 {[%emt 0:00:25]} 44. Rb5+ {[%emt 0:01:18]} Kc6 {[%emt 0:00:07]} 45. Kc4 {[%emt 0:00:42]} Ra7 {[%emt 0:01:16]} 46. Rb4 {[%emt 0:00:44]} Ra5 {[%emt 0:00:29]} 47. Kc3 {[%emt 0:00:34]} h6 {[%emt 0:00:18]} 48. Rb8 {[%emt 0:00:38]} Re5 {[%emt 0:00:29]} 49. Kd2 {[%emt 0:00:42] Prevents Re3} Re4 {[%emt 0:00:17]} 50. b4 {[%emt 0:00:33]} Rg4 {[%emt 0:00:32]} 51. Rc8+ {[%emt 0:00:17]} Kb6 {[%emt 0:00:41]} 52. Rc3 {[%emt 0:00:04]} Kb5 {[%emt 0:00:31]} 53. Rc5+ {[%emt 0:01:45]} Kb6 {[%emt 0:00:02]} 54. Rc3 {[%emt 0:00:05]} Kb5 {[%emt 0:00:03]} 55. Rc5+ {[%emt 0:02:29]} Kb6 {[%emt 0:00:02]} 56. Rc3 {[%emt 0:00:03]} Kb5 {[%emt 0:00:15] Weighted Error Value: White=0.05 (flawless) /Black=0.07 (flawless) .  Mistake:       	White=2     	Black=2      Inaccurate:     	---       	Black=1      OK:         	White=18    	Black=24     Best:        	---       	Black=1      Strong:       	White=1     	Black=1} 1/2-1/2

[Event "Cairns Cup 2024"]
[Site "Saint Louis"]
[Date "2024.06.19"]
[Round "6.3"]
[White "Paehtz, Elisabeth"]
[Black "Muzychuk, Anna"]
[Result "1/2-1/2"]
[ECO "A07"]
[WhiteElo "2457"]
[BlackElo "2505"]
[Annotator "TA"]
[PlyCount "54"]
[EventDate "2024.06.13"]
[EventType "tourn"]
[EventCountry "USA"]
[SourceTitle "playchess.com"]
[Source "ChessBase"]
[SourceQuality "1"]
[TimeControl "40/5400+30:1800+30"]

{[%evp 11,54,-24,0,0,0,0,0,0,0,0,0,0,23,0,0,0,0,0,0,0,0,0,0,0,0,0,0,0,0,0,0,0,0,0,0,0,0,0,0,0,0,0,0,0,0]} 1. Nf3 {[%emt 0:00:00]} d5 {[%emt 0:00:00]} 2. g3 {[%emt 0:00:00]} g6 {[%emt 0:00:00]} 3. Bg2 {[%emt 0:00:00]} Bg7 {[%emt 0:00:00]} 4. c4 {[%emt 0:00:00]} dxc4 {[%emt 0:00:00]} 5. Qa4+ {[%emt 0:00:00]} Nc6 {[%emt 0:00:00]} 6. O-O {[%emt 0:00:00]} e5 {[%emt 0:00:00]} (6... Nh6 {might be stronger.}) 7. Nxe5 $11 {[%emt 0:00:00]} Bxe5 {[%emt 0:00:00]} 8. Bxc6+ {[%emt 0:00:00]} bxc6 {[%emt 0:00:00]} 9. Qxc6+ {[%emt 0:00:00]} Bd7 {[%emt 0:00:00]} 10. Qe4 {[%emt 0:00:00]} f6 {[%emt 0:00:00]} 11. f4 {[%emt 0:00:00]} Bf5 {[%emt 0:00:00]} 12. Qc6+ {[%emt 0:00:00][%mdl 1024] White has compensation.} (12. Qe3 $5 Qd4 (12... Bxb1 13. Rxb1 Qd4 14. fxe5 $16) 13. fxe5 Qxe3+ 14. dxe3 fxe5 15. e4 Bxe4 16. Na3 $16) 12... Bd7 {[%emt 0:00:00] The position is equal.} 13. Qe4 {[%emt 0:00:00]} Bf5 {[%emt 0:00:00]} 14. Qe3 {[%emt 0:00:00]} Bh3 $1 {[%emt 0:00:00]} ({Reject} 14... Bxb1 $6 15. Rxb1 (15. fxe5 Bf5 $17) 15... Qd4 16. fxe5 fxe5 17. Qxd4 exd4 18. d3 $16) 15. Rf3 {[%emt 0:00:00]} Nh6 {[%emt 0:00:00]} 16. fxe5 {[%emt 0:00:11]} Nf5 {[%emt 0:00:00]} 17. Qa3 {[%emt 0:05:38]} Qd4+ {[%emt 0:00:43]} 18. Rf2 {[%emt 0:02:39]} fxe5 {[%emt 0:04:43]} (18... Qxe5 19. Qa4+ Kd8 20. Qxc4 $16) 19. Qa4+ {[%emt 0:06:14]} Ke7 $1 {[%emt 0:04:17] [#] White must now prevent ...Raf8.} 20. d3 {[%emt 0:06:00]} cxd3 {[%emt 0:00:45][%cal Bc4d3,Bd3e2][%mdl 32]} 21. Bg5+ {[%emt 0:00:43]} Kf7 {[%emt 0:02:02]} 22. Qc6 {[%emt 0:01:47] Some like it hot} dxe2 {[%emt 0:05:52][%cal Re2e1]} 23. Qf6+ $1 {[%emt 0:00:29]} Kg8 {[%emt 0:00:10][%cal Re2e1] [#]} 24. Qe6+ {[%emt 0:00:38]} Kg7 {[%emt 0:00:06][%cal Re2e1]} 25. Qf6+ {[%emt 0:00:16]} Kg8 {[%emt 0:00:06][%cal Re2e1]} 26. Qe6+ {[%emt 0:02:03]} Kg7 {[%emt 0:00:06][%cal Re2e1]} 27. Qf6+ {[%emt 0:00:03]} Kg8 {[%emt 0:00:16] Not much happened in this game.   Weighted Error Value: White=0.02 (flawless) /Black=0.01 (flawless) .  OK:         	White=7     	Black=7      Best:        	White=7     	Black=7      Strong:       	White=1     	Black=2} 1/2-1/2

[Event "Cairns Cup 2024"]
[Site "Saint Louis"]
[Date "2024.06.19"]
[Round "6.4"]
[White "Dzagnidze, Nana"]
[Black "Tan, Zhongyi"]
[Result "1/2-1/2"]
[ECO "D59"]
[WhiteElo "2506"]
[BlackElo "2540"]
[Annotator "TA"]
[PlyCount "59"]
[EventDate "2024.06.13"]
[EventType "tourn"]
[EventCountry "USA"]
[SourceTitle "playchess.com"]
[Source "ChessBase"]
[SourceQuality "1"]
[TimeControl "40/5400+30:1800+30"]

{[%evp 28,59,0,-2,-12,0,0,0,0,0,-7,-7,0,0,0,0,0,0,0,0,68,0,0,0,0,0,0,0,0,0,0,0,0,0]} 1. d4 {[%emt 0:00:00]} d5 {[%emt 0:00:00]} 2. c4 {[%emt 0:00:00]} e6 {[%emt 0:00:00]} 3. Nc3 {[%emt 0:00:00]} Nf6 {[%emt 0:00:00]} 4. Bg5 {[%emt 0:00:00]} Be7 {[%emt 0:00:00]} 5. e3 {[%emt 0:00:00]} h6 {[%emt 0:00:00]} 6. Bh4 {[%emt 0:00:00]} O-O {[%emt 0:00:00]} 7. Nf3 {[%emt 0:00:00]} b6 {[%emt 0:00:00]} 8. cxd5 {[%emt 0:00:00]} Nxd5 {[%emt 0:00:00]} 9. Bxe7 {[%emt 0:00:00]} Qxe7 {[%emt 0:00:00]} 10. Nxd5 {[%emt 0:00:00]} exd5 {[%emt 0:00:00]} 11. Bd3 {[%emt 0:00:00]} c5 {[%emt 0:00:00]} 12. dxc5 {[%emt 0:00:00]} bxc5 {[%emt 0:00:00]} 13. O-O {[%emt 0:00:00]} Be6 {[%emt 0:00:00]} 14. Rc1 {[%emt 0:00:00]} Nd7 {[%emt 0:00:00]} 15. Qa4 {[%emt 0:00:00]} Rfb8 {[%emt 0:00:00]} 16. Bb5 {[%emt 0:00:00]} a5 {[%emt 0:00:00]} 17. Bxd7 {[%emt 0:13:26]} Bxd7 {[%emt 0:00:00]} 18. Qa3 {[%emt 0:00:18]} Rb4 {[%emt 0:00:59]} 19. Rfd1 {[%emt 0:01:25]} Bg4 {[%emt 0:18:54] Hoping for ...Bxf3.} 20. Rxd5 {[%emt 0:08:19]} Bxf3 {[%emt 0:00:29]} 21. gxf3 {[%emt 0:00:08]} Qf6 {[%emt 0:00:14][%csl LRb2,LRf3]} 22. Kg2 {[%emt 0:19:45]} Rxb2 {[%emt 0:11:16]} 23. Rdxc5 {[%emt 0:14:18]} Rd8 {[%emt 0:00:59] Prevents Qd3} (23... Rd2 $11) 24. Rc8 {[%emt 0:02:15]} (24. Qxa5 $14 Rdd2 25. Qa8+ Kh7 26. Qe4+ g6 27. Rf1) 24... Qg5+ {[%emt 0:00:05] The position is equal.} 25. Kf1 {[%emt 0:00:29]} Qb5+ {[%emt 0:00:06]} (25... Rb8 {simplifies} 26. Rxb8 Rxb8 27. Qd3 Qh5) 26. Kg2 {[%emt 0:00:36]} Qg5+ {[%emt 0:07:18]} 27. Kf1 {[%emt 0:00:10]} Qb5+ {[%emt 0:00:05]} 28. Kg2 {[%emt 0:00:06]} Qg5+ {[%emt 0:00:23]} 29. Kf1 {[%emt 0:00:05]} Qb5+ {[%emt 0:00:05]} 30. Kg2 {[%emt 0:00:05] Not much happened in this game.   Weighted Error Value: White=0.06 (flawless) /Black=0.06 (flawless) .  Mistake:       	White=1     	Black=1      OK:         	White=9     	Black=7      Best:        	White=4     	---} 1/2-1/2

[Event "Cairns Cup 2024"]
[Site "Saint Louis"]
[Date "2024.06.19"]
[Round "6.5"]
[White "Lee, Alice"]
[Black "Krush, Irina"]
[Result "1/2-1/2"]
[ECO "E17"]
[WhiteElo "2368"]
[BlackElo "2415"]
[Annotator "RC"]
[PlyCount "181"]
[EventDate "2024.06.13"]
[EventType "tourn"]
[EventCountry "USA"]
[SourceTitle "playchess.com"]
[Source "ChessBase"]
[SourceQuality "1"]
[TimeControl "40/5400+30:1800+30"]

1. d4 {[%emt 0:00:00]} Nf6 {[%emt 0:00:00]} 2. c4 {[%emt 0:00:00]} e6 {[%emt 0:00:00]} 3. Nf3 {[%emt 0:00:00]} d5 {[%emt 0:00:00]} 4. g3 {[%emt 0:00:00]} Bb4+ {[%emt 0:00:00]} 5. Bd2 {[%emt 0:00:00]} Be7 {[%emt 0:00:00]} 6. Bg2 {[%emt 0:00:00]} O-O {[%emt 0:00:00]} 7. O-O {[%emt 0:00:00]} c6 {[%emt 0:00:00]} 8. b3 {[%emt 0:00:00]} Nbd7 {[%emt 0:00:00]} 9. Bc1 {[%emt 0:00:00]} b6 {[%emt 0:00:00]} 10. Bb2 {[%emt 0:00:00]} Bb7 {[%emt 0:00:00]} 11. Nbd2 {[%emt 0:00:00]} c5 {[%emt 0:00:00]} 12. e3 {[%emt 0:00:00]} Rc8 {[%emt 0:00:00]} 13. Qe2 {[%emt 0:00:00]} Qc7 {[%emt 0:00:00]} 14. Rac1 {[%emt 0:00:00]} dxc4 {[%emt 0:00:00]} 15. Nxc4 {[%emt 0:00:00]} Qb8 {[%emt 0:05:39]} 16. Rfd1 {[%emt 0:00:00]} Rfd8 {[%emt 0:03:34]} 17. dxc5 {[%emt 0:00:00]} Bxc5 {[%emt 0:09:21]} 18. Nfe5 {[%emt 0:00:00]} Bxg2 {[%emt 0:06:26]} 19. Nxd7 {[%emt 0:03:37]} Rxd7 {[%emt 0:06:05]} 20. Kxg2 {[%emt 0:09:06]} Qb7+ {[%emt 0:05:57]} 21. Kg1 {[%emt 0:02:44]} Be7 {[%emt 0:03:23]} 22. Rxd7 {[%emt 0:08:46]} Qxd7 {[%emt 0:04:08]} 23. Qf3 {[%emt 0:17:41]} b5 {[%emt 0:08:05]} 24. Ne5 {[%emt 0:03:53]} Rxc1+ {[%emt 0:00:55]} 25. Bxc1 {[%emt 0:00:09]} Qd5 {[%emt 0:00:13]} 26. Qxd5 {[%emt 0:00:14]} Nxd5 {[%emt 0:00:04]} 27. Nc6 {[%emt 0:04:21]} Bc5 {[%emt 0:04:57]} 28. Bd2 {[%emt 0:02:01]} Kf8 {[%emt 0:04:43]} 29. Kf1 {[%emt 0:01:13]} Ke8 {[%emt 0:00:44]} 30. Ke2 {[%emt 0:01:03]} f6 {[%emt 0:03:56]} 31. e4 {[%emt 0:05:30]} Ne7 {[%emt 0:01:23]} 32. Nxe7 {[%emt 0:01:21]} Kxe7 {[%emt 0:01:25]} 33. f4 {[%emt 0:00:14]} Kd6 {[%emt 0:04:54]} 34. Kd3 {[%emt 0:03:00]} h5 {[%emt 0:04:18]} 35. h3 {[%emt 0:01:00]} a6 {[%emt 0:11:15]} 36. Bc3 {[%emt 0:01:36]} Bf2 {[%emt 0:05:34]} 37. g4 {[%emt 0:00:37]} hxg4 {[%emt 0:00:08]} 38. hxg4 {[%emt 0:00:05]} Kc6 {[%emt 0:04:11]} 39. Ke2 {[%emt 0:06:54]} Bc5 {[%emt 0:00:51]} 40. Kf3 {[%emt 0:01:18]} Be7 {[%emt 0:01:48]} 41. f5 {[%emt 0:37:43]} e5 {[%emt 0:30:02]} 42. Bb2 {[%emt 0:15:05]} Kd7 {[%emt 0:00:30]} 43. g5 {[%emt 0:01:03]} Ke8 {[%emt 0:00:43]} 44. Ke2 {[%emt 0:00:47]} Kd7 {[%emt 0:00:22]} 45. Ke3 {[%emt 0:00:19]} Bc5+ {[%emt 0:00:38]} 46. Kd3 {[%emt 0:00:15]} Be7 {[%emt 0:00:35]} 47. Bc3 {[%emt 0:00:19]} Bd6 {[%emt 0:01:14]} 48. Ke2 {[%emt 0:03:19]} Ke7 {[%emt 0:01:30]} 49. Kf3 {[%emt 0:00:10]} Kf7 {[%emt 0:01:33]} 50. Kg4 {[%emt 0:00:13]} Bc5 {[%emt 0:00:21]} 51. Bd2 {[%emt 0:02:05]} Be7 {[%emt 0:00:18]} 52. Bc3 {[%emt 0:01:21]} Bc5 {[%emt 0:00:15]} 53. Ba5 {[%emt 0:00:32]} Be7 {[%emt 0:01:16]} 54. Bb6 {[%emt 0:05:15]} Bb4 {[%emt 0:00:30]} 55. Bf2 {[%emt 0:01:09]} Be7 {[%emt 0:00:25]} 56. Be3 {[%emt 0:00:49]} Bb4 {[%emt 0:00:09]} 57. Bb6 {[%emt 0:00:04]} Be7 {[%emt 0:00:11]} 58. Ba5 {[%emt 0:00:28]} Ke8 {[%emt 0:00:47]} 59. Kh5 {[%emt 0:00:31]} Kf7 {[%emt 0:00:02]} 60. b4 {[%emt 0:01:42]} Bd6 {[%emt 0:03:16]} 61. a3 {[%emt 0:00:04]} Bb8 {[%emt 0:00:59]} 62. Bb6 {[%emt 0:00:03]} Bd6 {[%emt 0:00:07]} 63. Ba7 {[%emt 0:00:16]} Bc7 {[%emt 0:00:10]} 64. Bc5 {[%emt 0:00:09]} Bd8 {[%emt 0:00:47]} 65. Bf2 {[%emt 0:01:07]} Bc7 {[%emt 0:00:29]} 66. Ba7 {[%emt 0:00:09]} Bd8 {[%emt 0:00:30]} 67. Be3 {[%emt 0:01:27]} Bc7 {[%emt 0:00:25]} 68. Kg4 {[%emt 0:00:14]} Bd8 {[%emt 0:00:15]} 69. Kf3 {[%emt 0:00:16]} Bc7 {[%emt 0:01:00]} 70. Ke2 {[%emt 0:00:25]} Bd8 {[%emt 0:00:09]} 71. Bc5 {[%emt 0:01:22]} Bc7 {[%emt 0:00:30]} 72. Ba7 {[%emt 0:00:11]} Bd8 {[%emt 0:00:09]} 73. Be3 {[%emt 0:00:02]} Bc7 {[%emt 0:00:20]} 74. Kd3 {[%emt 0:01:33]} Bd8 {[%emt 0:00:10]} 75. g6+ {[%emt 0:00:33]} Ke8 {[%emt 0:00:28]} 76. Ke2 {[%emt 0:00:29]} Be7 {[%emt 0:00:23]} 77. Kf3 {[%emt 0:00:08]} Bf8 {[%emt 0:01:03]} 78. Kg4 {[%emt 0:00:12]} Be7 {[%emt 0:00:35]} 79. Kh5 {[%emt 0:00:09]} Bf8 {[%emt 0:01:00]} 80. Bf2 {[%emt 0:00:13]} Be7 {[%emt 0:00:15]} 81. Bg3 {[%emt 0:00:10]} Bd6 {[%emt 0:00:22]} 82. Be1 {[%emt 0:00:15]} Be7 {[%emt 0:00:09]} 83. Bh4 {[%emt 0:00:09]} Kf8 {[%emt 0:00:55]} 84. Bf2 {[%emt 0:00:24]} Ke8 {[%emt 0:00:10]} 85. Ba7 {[%emt 0:00:05]} Kd7 {[%emt 0:02:27]} 86. Bb6 {[%emt 0:00:14]} Kc6 {[%emt 0:00:29]} 87. Ba5 {[%emt 0:00:59]} Kd7 {[%emt 0:00:16]} 88. Bb6 {[%emt 0:00:39]} Kc6 {[%emt 0:00:04]} 89. Ba5 {[%emt 0:00:04]} Kd7 {[%emt 0:00:05]} 90. Bb6 {[%emt 0:00:03]} Kc6 {[%emt 0:00:08]} 91. Ba5 {[%emt 0:00:14]} 1/2-1/2